[Event "ISR-chT U14 2018"]
[Site "Nir HaEmek"]
[Date "2018.08.14"]
[Round "6"]
[White "Gorshtein, Asaf"]
[Black "Levitan, Ronit"]
[Result "1-0"]
[ECO "C84"]
[WhiteElo "2137"]
[BlackElo "1933"]
[Annotator "NA"]
[PlyCount "89"]
[EventDate "2018.08.12"]
[EventType "team-tourn"]
[EventCountry "ISR"]
[SourceTitle "playchess.com"]
[Source "ChessBase"]
[SourceQuality "1"]
[TimeControl "3060+10"]

1. e4 {[%emt 0:00:54]} e5 {[%emt 0:00:58]} 2. Nf3 {[%emt 0:00:03]} Nc6 {[%emt 0:00:04]} 3. Bb5 {[%emt 0:00:05]} a6 {[%emt 0:00:04]} 4. Ba4 {[%emt 0:00:06]} Nf6 {[%emt 0:00:04]} 5. d4 {[%emt 0:00:05]} exd4 {[%emt 0:07:44]} 6. O-O {[%emt 0:00:06]} Be7 {[%emt 0:03:31]} 7. e5 {[%emt 0:01:15]} Nd5 {[%emt 0:01:41] LiveBook: 4 Games} 8. Nxd4 {[%emt 0:03:42]} Nb6 {[%emt 0:00:49]} 9. Nf5 {[%emt 0:19:16]} O-O {[%emt 0:14:08]} 10. Bb3 {[%emt 0:05:27] C84: Spanische Partie (Mittelgambit)} (10. Qg4 g6 11. Bxc6 dxc6 12. Nxe7+ Qxe7 13. Qg3 Re8 14. Re1 Bf5 15. Nd2 Bxc2 16. Nf3 c5 17. Bg5 Qe6 18. Rac1 Bf5 19. Bf6 Nd7 20. Ng5 Qc6 21. Nxh7 Nxf6 22. Nxf6+ Kg7 23. Nxe8+ Rxe8 24. Qc3 {1-0 (24) Gomez Baillo,J (2425)-Arbunic Castro,G (2180) Mar del Plata 1991}) 10... d5 $146 {[%emt 0:07:23]} ({Vorgänger:} 10... Nxe5 11. Nxe7+ Qxe7 12. Re1 Qf6 13. Nc3 d6 14. Ne4 {0-1 (42) Molina Cubero Luna,G (1978)-Labena Bernal,A (1884) Spain 2006}) 11. exd6 {[%emt 0:02:21]} Bxf5 {[%emt 0:00:11]} 12. dxe7 {[%emt 0:00:05]} Qxe7 {[%emt 0:00:06]} 13. Nc3 {[%emt 0:03:52]} Rad8 {[%emt 0:01:07]} 14. Qf3 {[%emt 0:01:29]} Nd4 {[%emt 0:06:33]} 15. Qg3 {[%emt 0:04:57]} Nxb3 {[%emt 0:00:13]} 16. cxb3 {[%emt 0:00:26]} Bd3 $14 {[%emt 0:01:48]} 17. Bg5 {[%emt 0:00:56]} f6 {[%emt 0:00:24]} 18. Rfe1 {[%emt 0:00:11]} Qc5 {[%emt 0:03:27]} 19. Be3 {[%emt 0:01:13]} Qc6 {[%emt 0:00:27]} 20. Bxb6 {[%emt 0:00:47]} cxb6 {[%emt 0:02:09]} 21. Re7 {[%emt 0:01:06]} Bg6 {[%emt 0:00:01]} 22. Rc7 {[%emt 0:01:23]} Qe6 {[%emt 0:00:31]} 23. Rxb7 {[%emt 0:00:30]} Rd2 {[%emt 0:00:10]} 24. Qc7 {[%emt 0:00:54]} Bf7 {[%emt 0:00:06]} 25. Qxb6 {[%emt 0:00:37]} Rxb2 {[%emt 0:00:51]} 26. Qxe6 {[%emt 0:00:34]} Bxe6 {[%emt 0:00:01]} 27. Re1 {[%emt 0:00:32]} Rc2 {[%emt 0:00:12]} 28. h3 {[%emt 0:00:43]} Bf7 {[%emt 0:00:15]} 29. Na4 {[%emt 0:00:53]} Rxa2 {[%emt 0:00:12]} 30. Ree7 {[%emt 0:00:06]} Ra1+ {[%emt 0:00:15]} 31. Kh2 {[%emt 0:00:01]} Rc1 {[%emt 0:00:06]} 32. b4 {[%emt 0:00:24]} g5 {[%emt 0:00:17]} 33. Nc5 {[%emt 0:00:17]} Rd1 {[%emt 0:00:16]} 34. Ne6 {[%emt 0:00:18]} Re1 {[%emt 0:00:13]} 35. Nxf8 {[%emt 0:00:02]} Rxe7 {[%emt 0:00:02]} 36. Rxe7 {[%emt 0:00:01]} Kxf8 {[%emt 0:00:01]} 37. Ra7 {[%emt 0:00:04]} Bc4 {[%emt 0:00:04]} 38. Rxh7 {[%emt 0:00:04]} Kg8 {[%emt 0:00:02]} 39. Rc7 {[%emt 0:00:04]} Bb5 {[%emt 0:00:06]} 40. g3 {[%emt 0:00:04]} Kf8 {[%emt 0:00:02]} 41. h4 {[%emt 0:00:02]} gxh4 {[%emt 0:00:05]} 42. gxh4 {[%emt 0:00:03]} Kg8 {[%emt 0:00:01]} 43. Kg3 {[%emt 0:00:01]} Kh8 {[%emt 0:00:03]} 44. Kf4 {[%emt 0:00:02]} Bd3 {[%emt 0:00:03]} 45. Rd7 {[%emt 0:00:05]} 1-0

[Event "ISR-chT U14 2018"]
[Site "Nir HaEmek"]
[Date "2018.08.14"]
[Round "6"]
[White "Ben Ari, Yannay"]
[Black "Aizenberg, Benny"]
[Result "1-0"]
[ECO "C26"]
[WhiteElo "2022"]
[BlackElo "2149"]
[Annotator "NA"]
[PlyCount "69"]
[EventDate "2018.08.12"]
[EventType "team-tourn"]
[EventCountry "ISR"]
[SourceTitle "playchess.com"]
[Source "ChessBase"]
[SourceQuality "1"]
[TimeControl "3060+10"]

1. e4 {[%emt 0:00:53]} e5 {[%emt 0:00:51]} 2. Nc3 {[%emt 0:00:31]} Nf6 {[%emt 0:00:03]} 3. g3 {[%emt 0:00:06]} Bc5 {[%emt 0:02:47]} 4. Bg2 {[%emt 0:00:07]} d6 {[%emt 0:00:11]} 5. Nge2 {[%emt 0:00:21]} O-O {[%emt 0:02:19] LiveBook: 4 Games} 6. O-O {[%emt 0:00:25]} Nc6 {[%emt 0:00:24]} 7. Na4 {[%emt 0:00:33] C26: Vienna Game: 2...Nf6, sidelines} Bb6 {[%emt 0:00:54]} (7... Bg4 8. h3 Be6 9. d3 h6 10. Nxc5 dxc5 11. f4 Qe7 12. f5 Bd7 13. g4 Nh7 14. Qe1 Nd4 15. Nxd4 cxd4 {1-0 (60) Yu,Y (2675)-Kryvoruchko,Y (2707) Dubai 2014}) 8. d3 {[%emt 0:04:08]} Bg4 {[%emt 0:04:35]} 9. h3 $146 {[%emt 0:00:13]} ({Predecessor:} 9. c3 Nd7 10. Nxb6 axb6 11. h3 Be6 12. f4 f6 13. f5 Bf7 14. a3 Nc5 {½-½ (114) Webster,I (2119)-Jones,R (2072) Birmingham 2005}) 9... Bxe2 {[%emt 0:00:40]} 10. Qxe2 {[%emt 0:00:07]} Nd4 {[%emt 0:00:10]} 11. Qd1 {[%emt 0:00:05]} c6 {[%emt 0:00:20]} 12. c3 {[%emt 0:03:37]} Ne6 {[%emt 0:00:05]} 13. Nxb6 {[%emt 0:00:09]} Qxb6 {[%emt 0:00:40]} 14. Re1 {[%emt 0:03:15]} Rad8 {[%emt 0:03:21]} 15. Qc2 {[%emt 0:01:34]} Rfe8 {[%emt 0:01:01]} 16. Be3 {[%emt 0:00:10]} Qc7 {[%emt 0:00:05]} 17. d4 {[%emt 0:00:16]} Nf8 {[%emt 0:18:18]} 18. Rad1 {[%emt 0:01:31]} Ng6 {[%emt 0:01:11]} 19. f4 {[%emt 0:03:32]} exf4 {[%emt 0:01:46]} 20. gxf4 {[%emt 0:01:52]} Nh4 {[%emt 0:02:30] [#]} 21. Bh1 $1 {[%emt 0:11:51]} d5 {[%emt 0:12:19]} (21... Ng6 $16) 22. Qf2 {[%emt 0:03:32]} Ng6 {[%emt 0:00:00]} 23. e5 {[%emt 0:00:59]} Ne4 $18 {[%emt 0:00:00]} 24. Bxe4 {[%emt 0:00:07]} dxe4 {[%emt 0:00:00]} 25. f5 {[%emt 0:00:04]} Ne7 {[%emt 0:00:00]} 26. Bg5 {[%emt 0:06:01]} Rd5 {[%emt 0:00:24]} 27. Rxe4 {[%emt 0:00:30]} Kh8 {[%emt 0:00:11]} 28. f6 {[%emt 0:00:15]} Ng6 {[%emt 0:00:22]} 29. fxg7+ {[%emt 0:00:34]} Kg8 {[%emt 0:00:01]} 30. Rf1 {[%emt 0:00:54]} c5 {[%emt 0:00:10]} 31. h4 {[%emt 0:00:32]} cxd4 {[%emt 0:00:16]} 32. cxd4 {[%emt 0:00:09]} h6 {[%emt 0:00:14]} 33. e6 {[%emt 0:00:51]} fxe6 {[%emt 0:00:08]} 34. Rxe6 {[%emt 0:00:33]} Rc8 {[%emt 0:00:10]} 35. Rxg6 {[%emt 0:00:07]} 1-0

[Event "ISR-chT U14 2018"]
[Site "Nir HaEmek"]
[Date "2018.08.14"]
[Round "6"]
[White "Mizrahi, Ido"]
[Black "Sherman, Reem"]
[Result "0-1"]
[ECO "E10"]
[WhiteElo "1943"]
[BlackElo "1757"]
[Annotator "NA"]
[PlyCount "80"]
[EventDate "2018.08.12"]
[EventType "team-tourn"]
[EventCountry "ISR"]
[SourceTitle "playchess.com"]
[Source "ChessBase"]
[SourceQuality "1"]
[TimeControl "3060+10"]

1. d4 {[%emt 0:00:59]} Nf6 {[%emt 0:00:59]} 2. c4 {[%emt 0:00:04]} c5 {[%emt 0:00:05]} 3. d5 {[%emt 0:00:14]} b5 {[%emt 0:00:04]} 4. Nf3 {[%emt 0:00:32]} e6 {[%emt 0:00:42]} 5. dxe6 $11 {[%emt 0:01:40]} fxe6 {[%emt 0:00:09]} 6. cxb5 {[%emt 0:00:28]} d5 {[%emt 0:00:09]} 7. Nc3 {[%emt 0:07:41]} Bd6 {[%emt 0:00:44]} 8. Bg5 {[%emt 0:01:59]} Nbd7 {[%emt 0:01:14]} 9. e4 {[%emt 0:09:22]} d4 {[%emt 0:01:45]} 10. Nb1 {[%emt 0:01:01]} e5 {[%emt 0:00:28]} 11. Nbd2 {[%emt 0:00:51]} Nb6 {[%emt 0:03:28]} 12. Bd3 {[%emt 0:04:19]} Be6 {[%emt 0:00:35]} 13. b3 {[%emt 0:00:46]} h6 {[%emt 0:02:13]} 14. Bh4 {[%emt 0:02:00]} O-O {[%emt 0:02:52]} 15. O-O {[%emt 0:01:31]} Qd7 {[%emt 0:00:51]} 16. Qe2 {[%emt 0:02:19]} Qf7 {[%emt 0:01:56]} 17. a4 {[%emt 0:07:05]} Nh5 {[%emt 0:00:59]} 18. Bg3 {[%emt 0:01:01]} Nf4 {[%emt 0:00:16]} 19. Bxf4 {[%emt 0:00:24]} Qxf4 {[%emt 0:00:07]} 20. a5 {[%emt 0:00:55]} Nd7 {[%emt 0:00:50]} 21. Bc4 {[%emt 0:00:52]} Rae8 {[%emt 0:03:21]} 22. Ne1 {[%emt 0:01:07]} Rf6 {[%emt 0:00:31]} 23. Nd3 {[%emt 0:00:48]} Qg5 {[%emt 0:02:47]} 24. Bxe6+ {[%emt 0:01:01]} Rfxe6 {[%emt 0:00:47]} 25. Nc4 {[%emt 0:00:27]} Rg6 {[%emt 0:00:59]} 26. f3 {[%emt 0:00:06]} Bc7 {[%emt 0:00:18]} 27. b4 {[%emt 0:03:15]} cxb4 {[%emt 0:02:22]} 28. Nxb4 {[%emt 0:00:01]} Nc5 {[%emt 0:00:29]} 29. Nd5 {[%emt 0:00:19]} Bb8 {[%emt 0:00:42]} 30. b6 {[%emt 0:01:06]} Nb3 {[%emt 0:03:37]} 31. Ra2 {[%emt 0:01:18]} Nc1 {[%emt 0:00:41]} 32. Qd2 {[%emt 0:00:32]} Nxa2 {[%emt 0:00:18]} 33. Qxa2 {[%emt 0:00:02]} Kh7 {[%emt 0:00:58]} 34. bxa7 {[%emt 0:00:22]} Bxa7 {[%emt 0:00:09]} 35. Ncb6 {[%emt 0:00:06]} d3 {[%emt 0:00:34]} 36. Qf2 {[%emt 0:00:14]} Ree6 {[%emt 0:00:21]} 37. Rd1 {[%emt 0:00:08]} Rc6 {[%emt 0:00:06]} 38. h3 {[%emt 0:00:11]} Rc2 {[%emt 0:00:09]} 39. Qf1 {[%emt 0:00:09]} Rxg2+ {[%emt 0:00:09]} 40. Kh1 {[%emt 0:00:01]} Qg3 {[%emt 0:00:11]} 0-1

[Event "ISR-chT U14 2018"]
[Site "Nir HaEmek"]
[Date "2018.08.14"]
[Round "6"]
[White "Friedland, Eldar"]
[Black "Sokolovsky, Yahli"]
[Result "0-1"]
[ECO "A65"]
[WhiteElo "1876"]
[BlackElo "2062"]
[Annotator "NA"]
[PlyCount "98"]
[EventDate "2018.08.12"]
[EventType "team-tourn"]
[EventCountry "ISR"]
[SourceTitle "playchess.com"]
[Source "ChessBase"]
[SourceQuality "1"]
[TimeControl "3060+10"]

1. d4 {[%emt 0:01:03]} Nf6 {[%emt 0:00:58]} 2. c4 {[%emt 0:00:06]} g6 {[%emt 0:00:14]} 3. f3 {[%emt 0:00:06]} Bg7 {[%emt 0:00:06]} 4. e4 {[%emt 0:00:07]} O-O {[%emt 0:00:12]} 5. Nc3 {[%emt 0:00:11]} d6 {[%emt 0:00:15]} 6. Be3 {[%emt 0:00:22]} c5 {[%emt 0:00:54]} 7. Nge2 $14 {[%emt 0:01:02] LiveBook: 1197 Games} Nc6 {[%emt 0:00:23]} 8. d5 {[%emt 0:01:38]} Ne5 {[%emt 0:00:22]} 9. Ng3 {[%emt 0:00:06]} e6 {[%emt 0:00:37]} 10. Be2 {[%emt 0:00:21]} exd5 {[%emt 0:00:23]} 11. cxd5 {[%emt 0:00:06]} a6 {[%emt 0:00:44]} 12. a4 {[%emt 0:00:24]} Bd7 {[%emt 0:00:21]} 13. h3 {[%emt 0:01:38]} b5 {[%emt 0:01:19]} 14. f4 {[%emt 0:03:00]} Nc4 {[%emt 0:00:11]} 15. Bxc4 {[%emt 0:00:05]} bxc4 {[%emt 0:00:06]} 16. O-O {[%emt 0:02:11]} Rb8 {[%emt 0:00:55]} 17. e5 {[%emt 0:02:14]} Ne8 {[%emt 0:02:12]} 18. Qd2 {[%emt 0:04:20]} Qb6 {[%emt 0:08:16]} 19. Rab1 {[%emt 0:06:44]} dxe5 {[%emt 0:06:27]} 20. Nce4 {[%emt 0:01:34]} Rc8 {[%emt 0:01:49]} 21. f5 {[%emt 0:03:56]} Nf6 {[%emt 0:04:23]} 22. Nxf6+ {[%emt 0:04:01]} Bxf6 {[%emt 0:00:38]} 23. d6 {[%emt 0:00:32]} Bh4 {[%emt 0:07:26]} 24. Bh6 {[%emt 0:13:29]} Bxg3 {[%emt 0:09:22]} 25. Qg5 {[%emt 0:00:05]} Qxd6 {[%emt 0:04:39]} 26. Qxg3 {[%emt 0:00:29]} Rfe8 {[%emt 0:00:51]} 27. Rbd1 {[%emt 0:00:35]} Qc6 {[%emt 0:00:48]} 28. Qg5 {[%emt 0:01:29]} f6 {[%emt 0:00:34]} 29. Qg3 {[%emt 0:02:01]} Kf7 {[%emt 0:00:03]} 30. fxg6+ {[%emt 0:00:07]} hxg6 {[%emt 0:00:01]} 31. Qf2 {[%emt 0:01:14]} Bf5 {[%emt 0:00:12]} 32. g4 {[%emt 0:00:11]} Bd3 {[%emt 0:00:12]} 33. Rfe1 {[%emt 0:00:28]} Rcd8 {[%emt 0:00:15]} 34. Be3 {[%emt 0:00:31]} Rd4 {[%emt 0:00:10]} 35. Bxd4 {[%emt 0:00:06]} cxd4 {[%emt 0:00:01]} 36. h4 {[%emt 0:00:14]} Qd5 {[%emt 0:00:16]} 37. g5 {[%emt 0:00:09]} f5 {[%emt 0:00:06]} 38. h5 {[%emt 0:00:01]} Rh8 {[%emt 0:00:25]} 39. h6 {[%emt 0:00:12]} e4 {[%emt 0:00:13]} 40. Qg3 {[%emt 0:00:05]} Rc8 {[%emt 0:00:08]} 41. h7 {[%emt 0:00:15]} Kg7 {[%emt 0:00:03]} 42. Rd2 {[%emt 0:00:17]} Kh8 {[%emt 0:00:09]} 43. Qh4 {[%emt 0:00:09]} e3 {[%emt 0:00:11]} 44. Rh2 {[%emt 0:00:10]} Qe4 {[%emt 0:00:16]} 45. Qh6 {[%emt 0:00:10]} e2 {[%emt 0:00:09]} 46. Qxg6 {[%emt 0:00:12]} Qe3+ {[%emt 0:00:04]} 47. Rf2 {[%emt 0:00:11]} Qg3+ {[%emt 0:00:03]} 48. Rg2 {[%emt 0:00:05]} Qxe1+ {[%emt 0:00:02]} 49. Kh2 {[%emt 0:00:04]} Qh4+ {[%emt 0:00:01]} 0-1

[Event "ISR-chT U14 2018"]
[Site "Nir HaEmek"]
[Date "2018.08.14"]
[Round "6"]
[White "Glatt, Oded"]
[Black "Katz, Kiril"]
[Result "0-1"]
[ECO "B40"]
[WhiteElo "1645"]
[BlackElo "1822"]
[Annotator "NA"]
[PlyCount "35"]
[EventDate "2018.08.12"]
[EventType "team-tourn"]
[EventCountry "ISR"]
[SourceTitle "playchess.com"]
[Source "ChessBase"]
[SourceQuality "1"]
[TimeControl "3060+10"]

{[%evp 8,28,16,6,13,5,7,-61,-53,-57,-19,-23,-14,32767,32767,32767,32767,32767,32767,32767,32767,32767,558]} 1. e4 {[%emt 0:00:52]} c5 {[%emt 0:00:57]} 2. Nf3 {[%emt 0:00:05]} e6 {[%emt 0:00:13]} 3. b3 {[%emt 0:00:23]} Nf6 {[%emt 0:01:01]} 4. e5 {[%emt 0:00:12]} Nd5 {[%emt 0:00:37]} 5. c4 {[%emt 0:01:16]} Ne7 {[%emt 0:03:26] LiveBook: 24 Games} 6. Bd3 {[%emt 0:00:55]} Nbc6 {[%emt 0:00:59]} 7. a3 {[%emt 0:04:00]} (7. Be4 $11) 7... Ng6 {[%emt 0:01:21]} 8. Bb2 {[%emt 0:00:09]} Qc7 {[%emt 0:00:34]} 9. Qe2 {[%emt 0:01:46]} Nf4 {[%emt 0:02:06]} 10. Qe4 {[%emt 0:00:58] Nxd3+Qxd3 [%clk 0:42:07]} Be7 {[%emt 0:02:01]} 11. Qe2 {[%emt 0:04:56]} Na5 {[%emt 0:03:23]} 12. Qe3 {[%emt 0:00:50]} Qb6 {[%emt 0:00:41] d4 [%clk 0:34:53] Qxb3Qxb3 [%clk 0:33:56] Nxb3 [%clk 0:33:51]} 13. Ra2 {[%emt 0:02:48] Nxd4 [%clk 0:33:07] Nxd4 [%clk 0:33:41] cxd4Bxd4 [%clk 0:33:47] b6 [%clk 0:31:02]} O-O {[%emt 0:03:25] Ba6 [%clk 0:28:49] Rc2 [%clk 0:24:50] Rc8 [%clk 0:28:38] Nd2 [%clk 0:23:10]} 14. O-O {[%emt 0:07:27] f4 [%clk 0:21:22] Rc7 [%clk 0:25:37] Rfc1 [%clk 0:18:17] Rfc8 [%clk 0:25:05] a4 [%clk 0:17:51] Bb4 [%clk 0:21:53] Ne4 [%clk 0:13:54] Ba3 [%clk 0:17:33] Ra1 [%clk 0:13:23] Rxc4 [%clk 0:16:52] Rd2 [%clk 0:11:51] Rc1+ [%clk 0:15:24] Kf2 [%clk 0:10:28] Rxa1 [%clk 0:13:54] Bxa1 [%clk 0:10:38] Bb7 [%clk 0:13:12] Nd6 [%clk 0:10:01]} Bd6 $18 {[%emt 0:19:53] Rxd6 [%clk 0:09:58] Rc2+ [%clk 0:12:36] Ke3 [%clk 0:09:49] Bc6 [%clk 0:12:29] Rd2 [%clk 0:09:13] Rxd2 [%clk 0:12:27] Kxd2 [%clk 0:09:14] Bxa4 [%clk 0:12:28]} (14... Qxb3 $19 {und alles wird gut.} 15. Nc3 Nxd3 16. Qxd3 Qxc4) 15. Bd4 {[%emt 0:17:32] Kf8 [%clk 0:11:43] Kc3 [%clk 0:08:58] Bc6 [%clk 0:11:14] g3 [%clk 0:09:05] Ke7 [%clk 0:10:52] Kb4 [%clk 0:08:50]} g6 {[%emt 0:02:53]} 16. h4 {[%emt 0:00:54] d6 [%clk 0:08:38] Ka3 [%clk 0:07:57] Kd7 [%clk 0:07:21] Kb3 [%clk 0:07:22] dxe5 [%clk 0:06:37]} Bxe5 {[%emt 0:03:10] Bd5+ [%clk 0:06:39] Ka4 [%clk 0:06:45] Kc6 [%clk 0:06:36] Bb8 [%clk 0:06:53] a6 [%clk 0:06:32]} 17. Bxe5 {[%emt 0:01:59] Kc5 [%clk 0:06:18] Bf6 [%clk 0:06:05] Bc6+ [%clk 0:06:18] Kb3 [%clk 0:06:04] a5 [%clk 0:05:08] Bc3 [%clk 0:05:38] Kb5 [%clk 0:04:35] Bd2 [%clk 0:05:29] Bd5+ [%clk 0:04:38] Ka3 [%clk 0:05:32] Ka6 [%clk 0:04:42] Be1 [%clk 0:05:15] b5 [%clk 0:04:48] Kb2 [%clk 0:05:06] b4 [%clk 0:04:50] g4 [%clk 0:05:08] Kb5 [%clk 0:04:48]} h5 {[%emt 0:02:00] gxh5 [%clk 0:04:48] gxh5 [%clk 0:05:18]} 18. a4 {[%emt 0:02:11] h6 [%clk 0:05:25] a3+ [%clk 0:04:45] Ka1 [%clk 0:05:34] b3 [%clk 0:04:30] Bc3 [%clk 0:05:38] b2+ [%clk 0:04:31] Bxb2 [%clk 0:05:48] axb2+ [%clk 0:04:39] Kxb2 [%clk 0:05:49] Kc4 [%clk 0:04:47]} 0-1

[Event "ISR-chT U14 2018"]
[Site "Nir HaEmek"]
[Date "2018.08.14"]
[Round "6"]
[White "Yusupoff, Yoav"]
[Black "Gov, Guy"]
[Result "1/2-1/2"]
[ECO "A06"]
[WhiteElo "1634"]
[BlackElo "1834"]
[Annotator "NA"]
[PlyCount "133"]
[EventDate "2018.08.12"]
[EventType "team-tourn"]
[EventCountry "ISR"]
[SourceTitle "playchess.com"]
[Source "ChessBase"]
[SourceQuality "1"]
[TimeControl "3060+10"]

1. Nf3 {[%emt 0:00:52]} d5 {[%emt 0:00:54]} 2. b3 {[%emt 0:00:03]} Bg4 {[%emt 0:00:06]} 3. Ne5 {[%emt 0:00:12]} Bf5 {[%emt 0:00:09] A06: Zukertort-Eröffnung} 4. Bb2 {[%emt 0:00:24]} f6 {[%emt 0:00:05]} 5. Nf3 {[%emt 0:00:31]} e5 {[%emt 0:00:04]} 6. e3 {[%emt 0:00:28]} Bd6 {[%emt 0:02:11]} 7. c4 {[%emt 0:01:41]} c6 {[%emt 0:05:58]} 8. Nc3 {[%emt 0:05:22]} Ne7 {[%emt 0:00:52]} 9. Rc1 $146 {[%emt 0:04:41]} ({Vorgänger:} 9. Be2 O-O 10. d3 Be6 11. O-O a6 12. Re1 {0-1 (62) Lie,E (2471)-Volkov,S (2593) Fagernes 2013}) 9... O-O {[%emt 0:03:04]} 10. Be2 {[%emt 0:04:38]} Bb4 {[%emt 0:12:22]} 11. a3 {[%emt 0:03:03]} d4 {[%emt 0:04:52]} 12. axb4 {[%emt 0:31:05]} dxc3 {[%emt 0:00:05]} 13. Bxc3 {[%emt 0:00:00]} Bd3 {[%emt 0:02:45]} 14. Bxd3 {[%emt 0:00:00]} Qxd3 {[%emt 0:00:03]} 15. Qe2 {[%emt 0:00:00]} Qg6 {[%emt 0:00:46]} 16. O-O {[%emt 0:00:00]} Nd7 {[%emt 0:02:16]} 17. d4 {[%emt 0:00:00]} e4 {[%emt 0:04:48]} 18. Nh4 {[%emt 0:00:00]} Qg5 {[%emt 0:00:07]} 19. g3 {[%emt 0:00:00]} Rfe8 {[%emt 0:02:20]} 20. Rce1 {[%emt 0:01:20]} Ng6 $18 {[%emt 0:02:13]} 21. Nxg6 {[%emt 0:00:00]} Qxg6 {[%emt 0:00:07]} 22. f3 {[%emt 0:00:00]} Nf8 {[%emt 0:03:55]} 23. fxe4 {[%emt 0:00:00]} Rxe4 {[%emt 0:00:01]} 24. Rf4 {[%emt 0:00:00]} Rae8 {[%emt 0:00:14]} 25. Qf3 {[%emt 0:00:00]} h5 {[%emt 0:02:05]} 26. Bd2 {[%emt 0:00:00]} Nh7 {[%emt 0:00:35]} 27. h4 {[%emt 0:00:00]} f5 {[%emt 0:01:23]} 28. Kh2 {[%emt 0:00:24]} Rxf4 {[%emt 0:00:24]} 29. exf4 {[%emt 0:00:28]} Nf6 {[%emt 0:00:09]} 30. Rxe8+ {[%emt 0:00:14]} Qxe8 {[%emt 0:00:01]} 31. Kg1 {[%emt 0:00:16]} Ne4 {[%emt 0:00:27]} 32. Qe3 {[%emt 0:00:01]} Qg6 {[%emt 0:00:05]} 33. Kg2 {[%emt 0:00:03]} Qg4 {[%emt 0:00:01]} 34. d5 {[%emt 0:00:20]} cxd5 {[%emt 0:00:15]} 35. cxd5 {[%emt 0:00:01]} Qd1 {[%emt 0:00:01]} 36. Be1 {[%emt 0:00:27]} Qxd5 {[%emt 0:00:01]} 37. Bf2 {[%emt 0:00:20]} b6 {[%emt 0:00:20]} 38. Kg1 {[%emt 0:00:11]} Kh7 {[%emt 0:00:24]} 39. Qf3 {[%emt 0:00:09]} Nf6 {[%emt 0:00:25]} 40. Qe3 {[%emt 0:00:11]} Qd1+ {[%emt 0:00:19]} 41. Kg2 {[%emt 0:00:00]} Qd5+ {[%emt 0:00:00]} 42. Kg1 {[%emt 0:00:01]} Ne4 {[%emt 0:00:01]} 43. Qf3 {[%emt 0:00:23]} Kh6 {[%emt 0:00:02]} 44. Qe3 {[%emt 0:00:04]} Qd1+ {[%emt 0:00:28]} 45. Kg2 {[%emt 0:00:01]} Nd2 {[%emt 0:00:03]} 46. Be1 {[%emt 0:00:23]} Ne4 {[%emt 0:00:24]} 47. Bf2 {[%emt 0:00:03]} Qc2 {[%emt 0:00:11]} 48. Kf3 {[%emt 0:00:21]} Qd1+ {[%emt 0:00:12]} 49. Kg2 {[%emt 0:00:01]} Qc2 {[%emt 0:00:01]} 50. Kg1 {[%emt 0:00:22]} Qc6 {[%emt 0:00:18]} 51. Qd3 {[%emt 0:00:12]} g6 {[%emt 0:00:15]} 52. Qd4 {[%emt 0:00:11]} Qc1+ {[%emt 0:00:14]} 53. Kg2 {[%emt 0:00:04]} Qc8 {[%emt 0:00:01]} 54. Qe5 {[%emt 0:00:11]} Kh7 {[%emt 0:00:22]} 55. Qe7+ {[%emt 0:00:02]} Kh6 {[%emt 0:00:02]} 56. Qe5 {[%emt 0:00:01]} Kh7 {[%emt 0:00:02]} 57. Bd4 {[%emt 0:00:30]} Qc2+ {[%emt 0:00:01]} 58. Kh3 {[%emt 0:00:02]} Nf2+ {[%emt 0:00:13]} 59. Bxf2 {[%emt 0:00:01]} Qxf2 {[%emt 0:00:06]} 60. Qe7+ {[%emt 0:00:00]} Kh6 {[%emt 0:00:02]} 61. Qf8+ {[%emt 0:00:05]} Kh7 {[%emt 0:00:02]} 62. Qf7+ {[%emt 0:00:30]} Kh6 {[%emt 0:00:01]} 63. Qf8+ {[%emt 0:00:18]} Kh7 {[%emt 0:01:17]} 64. Qe7+ {[%emt 0:00:02]} Kh6 {[%emt 0:00:00]} 65. Qxa7 {[%emt 0:00:21]} Qf1+ {[%emt 0:00:00]} 66. Kh2 {[%emt 0:00:01]} Qf2+ {[%emt 0:00:00]} 67. Kh3 {[%emt 0:00:35]} 1/2-1/2

[Event "ISR-chT U14 2018"]
[Site "Nir HaEmek"]
[Date "2018.08.14"]
[Round "6"]
[White "Shteiman, Yuval"]
[Black "Vagman, Roy"]
[Result "*"]
[ECO "C54"]
[WhiteElo "1584"]
[BlackElo "1952"]
[Annotator "NA RC"]
[PlyCount "22"]
[EventDate "2018.08.12"]
[EventType "team-tourn"]
[EventCountry "ISR"]
[SourceTitle "playchess.com"]
[Source "ChessBase"]
[SourceQuality "1"]
[TimeControl "3060+10"]

1. e4 {[%emt 0:00:53]} e5 {[%emt 0:00:56]} 2. Nf3 {[%emt 0:00:01]} Nc6 {[%emt 0:00:07]} 3. Bc4 {[%emt 0:00:03]} Bc5 {[%emt 0:00:11]} 4. c3 {[%emt 0:00:05]} Nf6 {[%emt 0:00:05]} 5. d3 {[%emt 0:00:03]} d6 {[%emt 0:00:12]} 6. O-O {[%emt 0:00:04]} O-O {[%emt 0:00:08]} 7. Nbd2 {[%emt 0:00:23]} a6 {[%emt 0:00:14]} 8. Re1 {[%emt 0:00:21]} Ba7 {[%emt 0:00:09]} 9. Nf1 {[%emt 0:00:38]} Ne7 {[%emt 0:00:12]} 10. Ng3 {[%emt 0:01:06]} Ng6 {[%emt 0:50:26]} 11. h3 {[%emt 0:01:21]} Re8 $14 {[%emt 0:00:00]} *